[Event "Late Titled Tuesday Blitz February 8 2022"]
[White "Mustafayev, Farid"]
[Black "Beulen, Marcel"]
[WhiteFideId "13408771"]
[BlackFideId "1001450"]
[WhiteElo "2129"]
[BlackElo "2333"]
[Result "0-1"]
[Round "01"]
[TimeControl "180+1"]
[Date "2022.02.09"]
[WhiteClock "0:00:54"]
[BlackClock "0:00:59"]

1. d4 {[%clk 0:03:00]}  d5 {[%clk 0:02:59]} 2. c4 {[%clk 0:03:00]}  c6 {[%clk 0:03:00]} 3. Nc3 {[%clk 0:02:58]}  Nf6 {[%clk 0:03:00]} 4. g3 {[%clk 0:02:59]}  Bf5 {[%clk 0:02:55]} 5. Bg2 {[%clk 0:02:59]}  e6 {[%clk 0:02:55]} 6. Nf3 {[%clk 0:02:58]}  Nbd7 {[%clk 0:02:54]} 7. O-O {[%clk 0:02:58]}  Be7 {[%clk 0:02:54]} 8. Nh4 {[%clk 0:02:57]}  Bg6 {[%clk 0:02:53]} 9. Nxg6 {[%clk 0:02:53]}  hxg6 {[%clk 0:02:54]} 10. b3 {[%clk 0:02:53]}  O-O {[%clk 0:02:51]} 11. Bb2 {[%clk 0:02:52]}  a5 {[%clk 0:02:52]} 12. e4 {[%clk 0:02:40]}  dxe4 {[%clk 0:02:51]} 13. Nxe4 {[%clk 0:02:41]}  Nxe4 {[%clk 0:02:51]} 14. Bxe4 {[%clk 0:02:42]}  a4 {[%clk 0:02:50]} 15. Qd2 {[%clk 0:02:42]}  axb3 {[%clk 0:02:49]} 16. axb3 {[%clk 0:02:42]}  Qb6 {[%clk 0:02:48]} 17. Qe3 {[%clk 0:02:34]}  Bf6 {[%clk 0:02:33]} 18. h4 {[%clk 0:02:18]}  Rfe8 {[%clk 0:02:11]} 19. f4 {[%clk 0:02:10]}  c5 {[%clk 0:01:50]} 20. dxc5 {[%clk 0:01:51]}  Qxc5 {[%clk 0:01:46]} 21. Qxc5 {[%clk 0:01:49]}  Nxc5 {[%clk 0:01:46]} 22. Bxf6 {[%clk 0:01:50]}  Nxe4 {[%clk 0:01:42]} 23. Be5 {[%clk 0:01:47]}  Nd2 {[%clk 0:01:31]} 24. Rxa8 {[%clk 0:01:43]}  Rxa8 {[%clk 0:01:30]} 25. Rd1 {[%clk 0:01:37]}  Nxb3 {[%clk 0:01:30]} 26. Rd7 {[%clk 0:01:36]}  Na5 {[%clk 0:01:26]} 27. c5 {[%clk 0:01:34]}  Rc8 {[%clk 0:01:26]} 28. Bd6 {[%clk 0:01:34]}  Nb3 {[%clk 0:01:23]} 29. Rxb7 {[%clk 0:01:24]}  Nxc5 {[%clk 0:01:23]} 30. Bxc5 {[%clk 0:01:24]}  Rxc5 {[%clk 0:01:24]} 31. Kg2 {[%clk 0:01:24]}  Rc3 {[%clk 0:01:20]} 32. Ra7 {[%clk 0:01:23]}  Rb3 {[%clk 0:01:20]} 33. Rc7 {[%clk 0:01:22]}  Rb5 {[%clk 0:01:19]} 34. Ra7 {[%clk 0:01:22]}  f6 {[%clk 0:01:19]} 35. Rc7 {[%clk 0:01:22]}  e5 {[%clk 0:01:19]} 36. fxe5 {[%clk 0:01:22]}  Rxe5 {[%clk 0:01:19]} 37. Kf3 {[%clk 0:01:23]}  Rb5 {[%clk 0:01:18]} 38. Ra7 {[%clk 0:01:23]}  g5 {[%clk 0:01:18]} 39. hxg5 {[%clk 0:01:22]}  Rxg5 {[%clk 0:01:17]} 40. Rc7 {[%clk 0:01:19]}  Kh7 {[%clk 0:01:17]} 41. Ra7 {[%clk 0:01:18]}  Kg6 {[%clk 0:01:17]} 42. Ra4 {[%clk 0:01:18]}  Rb5 {[%clk 0:01:17]} 43. Rg4+ {[%clk 0:01:18]}  Kf7 {[%clk 0:01:16]} 44. Ra4 {[%clk 0:01:18]}  Rc5 {[%clk 0:01:15]} 45. Kg4 {[%clk 0:01:19]}  Kg6 {[%clk 0:01:14]} 46. Ra6 {[%clk 0:01:18]}  Rc4+ {[%clk 0:01:13]} 47. Kh3 {[%clk 0:01:19]}  Kg5 {[%clk 0:01:13]} 48. Ra5+ {[%clk 0:01:19]}  f5 {[%clk 0:01:13]} 49. Ra3 {[%clk 0:01:20]}  g6 {[%clk 0:01:13]} 50. Rb3 {[%clk 0:01:20]}  Re4 {[%clk 0:01:13]} 51. Ra3 {[%clk 0:01:21]}  Re2 {[%clk 0:01:13]} 52. Ra5 {[%clk 0:01:17]}  Kh5 {[%clk 0:01:11]} 53. g4+ {[%clk 0:01:16]}  Kg5 {[%clk 0:01:10]} 54. gxf5 {[%clk 0:01:16]}  gxf5 {[%clk 0:01:11]} 55. Kg3 {[%clk 0:01:17]}  Re3+ {[%clk 0:01:11]} 56. Kf2 {[%clk 0:01:17]}  Rb3 {[%clk 0:01:11]} 57. Ra4 {[%clk 0:01:17]}  Rc3 {[%clk 0:01:10]} 58. Rb4 {[%clk 0:01:17]}  Ra3 {[%clk 0:01:09]} 59. Kf1 {[%clk 0:01:17]}  f4 {[%clk 0:01:09]} 60. Kf2 {[%clk 0:01:17]}  Kg4 {[%clk 0:01:09]} 61. Rb8 {[%clk 0:01:16]}  Ra2+ {[%clk 0:01:09]} 62. Kf1 {[%clk 0:01:16]}  Kg3 {[%clk 0:01:09]} 63. Rg8+ {[%clk 0:01:02]}  Kf3 {[%clk 0:01:09]} 64. Ke1 {[%clk 0:01:03]}  Ra1+ {[%clk 0:01:09]} 65. Kd2 {[%clk 0:01:03]}  Kf2 {[%clk 0:01:09]} 66. Rf8 {[%clk 0:01:03]}  f3 {[%clk 0:01:10]} 67. Kd3 {[%clk 0:01:03]}  Rd1+ {[%clk 0:01:07]} 68. Kc2 {[%clk 0:00:58]}  Rd5 {[%clk 0:01:04]} 69. Kc3 {[%clk 0:00:54]}  Ke3 {[%clk 0:01:00]} 70. Kc4 {[%clk 0:00:54]}  Re5 {[%clk 0:00:59]} 0-1


[Site "https://www.chess.com"]

[Event "Late Titled Tuesday Blitz February 8 2022"]
[White "Nilsen, Tobias Lang"]
[Black "Ponkratov, Pavel"]
[WhiteFideId "1521624"]
[BlackFideId "4157800"]
[WhiteElo "2013"]
[BlackElo "2487"]
[Result "1-0"]
[Round "01"]
[TimeControl "180+1"]
[Date "2022.02.08"]
[WhiteClock "0:00:41"]
[BlackClock "0:01:22"]

1. f4 {[%clk 0:02:59]}  e5 {[%clk 0:02:53]} 2. fxe5 {[%clk 0:02:57]}  d6 {[%clk 0:02:53]} 3. e4 {[%clk 0:02:57]}  Qh4+ {[%clk 0:02:42]} 4. Ke2 {[%clk 0:02:57]}  Qxe4+ {[%clk 0:02:38]} 5. Kf2 {[%clk 0:02:57]}  dxe5 {[%clk 0:02:38]} 6. d4 {[%clk 0:02:53]}  Qh4+ {[%clk 0:02:35]} 7. g3 {[%clk 0:02:52]}  Qxd4+ {[%clk 0:02:35]} 8. Qxd4 {[%clk 0:02:51]}  exd4 {[%clk 0:02:36]} 9. Nf3 {[%clk 0:02:50]}  c5 {[%clk 0:02:35]} 10. Bg2 {[%clk 0:02:51]}  Nc6 {[%clk 0:02:34]} 11. Re1+ {[%clk 0:02:50]}  Be7 {[%clk 0:02:35]} 12. c3 {[%clk 0:02:50]}  Nf6 {[%clk 0:02:35]} 13. cxd4 {[%clk 0:02:51]}  cxd4 {[%clk 0:02:35]} 14. Na3 {[%clk 0:02:51]}  O-O {[%clk 0:02:34]} 15. Nb5 {[%clk 0:02:51]}  Rd8 {[%clk 0:02:33]} 16. Bf4 {[%clk 0:02:50]}  Nd5 {[%clk 0:02:32]} 17. Nc7 {[%clk 0:02:34]}  Nxc7 {[%clk 0:02:28]} 18. Bxc7 {[%clk 0:02:34]}  Rd7 {[%clk 0:02:28]} 19. Bf4 {[%clk 0:02:34]}  h6 {[%clk 0:02:27]} 20. Rad1 {[%clk 0:02:33]}  g5 {[%clk 0:02:28]} 21. Bc1 {[%clk 0:02:33]}  Rd8 {[%clk 0:02:25]} 22. a3 {[%clk 0:02:32]}  Be6 {[%clk 0:02:25]} 23. b4 {[%clk 0:02:25]}  a6 {[%clk 0:02:24]} 24. Bb2 {[%clk 0:02:25]}  Bf6 {[%clk 0:02:23]} 25. Rd2 {[%clk 0:02:08]}  Rac8 {[%clk 0:02:19]} 26. Red1 {[%clk 0:02:08]}  Kg7 {[%clk 0:02:19]} 27. Nxd4 {[%clk 0:01:55]}  Nxd4 {[%clk 0:02:18]} 28. Bxd4 {[%clk 0:01:55]}  Bxd4+ {[%clk 0:02:18]} 29. Rxd4 {[%clk 0:01:56]}  Rc2+ {[%clk 0:02:18]} 30. Kg1 {[%clk 0:01:56]}  Rxd4 {[%clk 0:02:15]} 31. Rxd4 {[%clk 0:01:56]}  b5 {[%clk 0:02:09]} 32. Bb7 {[%clk 0:01:51]}  Bh3 {[%clk 0:02:06]} 33. Bxa6 {[%clk 0:01:42]}  Rg2+ {[%clk 0:02:05]} 34. Kh1 {[%clk 0:01:42]}  Ra2 {[%clk 0:02:01]} 35. Kg1 {[%clk 0:01:42]}  Rxa3 {[%clk 0:01:49]} 36. Bxb5 {[%clk 0:01:42]}  Ra1+ {[%clk 0:01:49]} 37. Kf2 {[%clk 0:01:41]}  Rh1 {[%clk 0:01:50]} 38. Bc6 {[%clk 0:01:39]}  Rxh2+ {[%clk 0:01:49]} 39. Ke3 {[%clk 0:01:39]}  Rb2 {[%clk 0:01:48]} 40. b5 {[%clk 0:01:40]}  Be6 {[%clk 0:01:46]} 41. Rd2 {[%clk 0:01:39]}  Rb1 {[%clk 0:01:44]} 42. Kd4 {[%clk 0:01:36]}  f5 {[%clk 0:01:42]} 43. Ke5 {[%clk 0:01:27]}  Re1+ {[%clk 0:01:39]} 44. Kd6 {[%clk 0:01:25]}  Kf6 {[%clk 0:01:38]} 45. Rb2 {[%clk 0:01:24]}  Rd1+ {[%clk 0:01:37]} 46. Kc7 {[%clk 0:01:24]}  Rc1 {[%clk 0:01:36]} 47. b6 {[%clk 0:01:00]}  Bd5 {[%clk 0:01:35]} 48. b7 {[%clk 0:01:00]}  Rxc6+ {[%clk 0:01:35]} 49. Kd7 {[%clk 0:00:57]}  Rc2 {[%clk 0:01:24]} 50. b8=Q {[%clk 0:00:45]}  Be6+ {[%clk 0:01:22]} 51. Kd6 {[%clk 0:00:41]} 1-0


[Site "https://www.chess.com"]

[Event "Late Titled Tuesday Blitz February 8 2022"]
[White "Novikov, Evgenij"]
[Black "Shoker, Samy"]
[WhiteFideId "4125380"]
[BlackFideId "627143"]
[WhiteElo "2242"]
[BlackElo "2493"]
[Result "0-1"]
[Round "01"]
[TimeControl "180+1"]
[Date "2022.02.09"]
[WhiteClock "0:00:08"]
[BlackClock "0:01:25"]

1. e4 {[%clk 0:02:59]}  d6 {[%clk 0:02:59]} 2. d4 {[%clk 0:02:58]}  Nf6 {[%clk 0:02:59]} 3. Nc3 {[%clk 0:02:58]}  g6 {[%clk 0:02:59]} 4. f3 {[%clk 0:02:58]}  c6 {[%clk 0:02:59]} 5. Be3 {[%clk 0:02:58]}  b5 {[%clk 0:02:58]} 6. a3 {[%clk 0:02:57]}  Nbd7 {[%clk 0:02:58]} 7. Nge2 {[%clk 0:02:32]}  Bb7 {[%clk 0:02:54]} 8. g4 {[%clk 0:02:25]}  Nb6 {[%clk 0:02:49]} 9. Ng3 {[%clk 0:02:25]}  h5 {[%clk 0:02:49]} 10. g5 {[%clk 0:02:17]}  Nfd7 {[%clk 0:02:49]} 11. h4 {[%clk 0:02:18]}  Bg7 {[%clk 0:02:49]} 12. f4 {[%clk 0:02:05]}  Qc7 {[%clk 0:02:16]} 13. Qf3 {[%clk 0:01:48]}  a6 {[%clk 0:02:11]} 14. Rd1 {[%clk 0:01:31]}  c5 {[%clk 0:02:10]} 15. d5 {[%clk 0:01:25]}  b4 {[%clk 0:02:08]} 16. axb4 {[%clk 0:00:56]}  cxb4 {[%clk 0:02:09]} 17. Nce2 {[%clk 0:00:56]}  Bxb2 {[%clk 0:02:00]} 18. Nd4 {[%clk 0:00:52]}  Bc3+ {[%clk 0:01:51]} 19. Kf2 {[%clk 0:00:52]}  Nc4 {[%clk 0:01:50]} 20. Bxc4 {[%clk 0:00:33]}  Qxc4 {[%clk 0:01:51]} 21. Rd3 {[%clk 0:00:21]}  Nc5 {[%clk 0:01:45]} 22. Rdd1 {[%clk 0:00:21]}  a5 {[%clk 0:01:38]} 23. f5 {[%clk 0:00:21]}  a4 {[%clk 0:01:36]} 24. f6 {[%clk 0:00:20]}  e5 {[%clk 0:01:31]} 25. dxe6 {[%clk 0:00:17]}  Nxe6 {[%clk 0:01:31]} 26. Nxe6 {[%clk 0:00:18]}  Qxe6 {[%clk 0:01:31]} 27. Bd4 {[%clk 0:00:15]}  Rc8 {[%clk 0:01:29]} 28. Ne2 {[%clk 0:00:09]}  Bxe4 {[%clk 0:01:27]} 29. Qe3 {[%clk 0:00:07]}  Bxh1 {[%clk 0:01:24]} 30. Qxe6+ {[%clk 0:00:08]}  fxe6 {[%clk 0:01:25]} 31. f7+ {[%clk 0:00:06]}  Kxf7 {[%clk 0:01:25]} 32. Bxh8 {[%clk 0:00:07]}  Bxh8 {[%clk 0:01:25]} 33. Rxh1 {[%clk 0:00:08]}  Rxc2 {[%clk 0:01:25]} 0-1


[Site "https://www.chess.com"]

[Event "Late Titled Tuesday Blitz February 8 2022"]
[White "Novikova, Galina"]
[Black "Stoleriu, George"]
[WhiteFideId "4157095"]
[BlackFideId "1227505"]
[WhiteElo "1863"]
[BlackElo "2203"]
[Result "0-1"]
[Round "01"]
[TimeControl "180+1"]
[Date "2022.02.09"]
[WhiteClock "0:00:05"]
[BlackClock "0:00:12"]

1. e4 {[%clk 0:02:57]}  e6 {[%clk 0:03:00]} 2. Nf3 {[%clk 0:02:55]}  d5 {[%clk 0:02:59]} 3. e5 {[%clk 0:02:56]}  c5 {[%clk 0:02:58]} 4. b4 {[%clk 0:02:57]}  cxb4 {[%clk 0:02:58]} 5. a3 {[%clk 0:02:57]}  Nc6 {[%clk 0:02:59]} 6. axb4 {[%clk 0:02:57]}  Bxb4 {[%clk 0:03:00]} 7. c3 {[%clk 0:02:58]}  Ba5 {[%clk 0:03:00]} 8. d4 {[%clk 0:02:59]}  a6 {[%clk 0:02:59]} 9. Bd3 {[%clk 0:02:59]}  h6 {[%clk 0:02:59]} 10. O-O {[%clk 0:02:58]}  Nge7 {[%clk 0:02:53]} 11. Bc2 {[%clk 0:02:57]}  b5 {[%clk 0:02:50]} 12. Nfd2 {[%clk 0:02:49]}  b4 {[%clk 0:02:46]} 13. Nb3 {[%clk 0:02:42]}  Bb6 {[%clk 0:02:41]} 14. Qg4 {[%clk 0:02:39]}  g6 {[%clk 0:02:38]} 15. Kh1 {[%clk 0:02:24]}  a5 {[%clk 0:02:27]} 16. Bd3 {[%clk 0:01:47]}  Ba6 {[%clk 0:02:22]} 17. Bxa6 {[%clk 0:01:42]}  Rxa6 {[%clk 0:02:23]} 18. cxb4 {[%clk 0:01:43]}  Nxb4 {[%clk 0:02:23]} 19. Na3 {[%clk 0:01:39]}  Qd7 {[%clk 0:02:19]} 20. Qe2 {[%clk 0:01:37]}  Nf5 {[%clk 0:01:58]} 21. Be3 {[%clk 0:01:36]}  O-O {[%clk 0:01:55]} 22. Nb5 {[%clk 0:01:24]}  a4 {[%clk 0:01:48]} 23. Nd6 {[%clk 0:01:23]}  Nxd6 {[%clk 0:01:12]} 24. exd6 {[%clk 0:01:24]}  axb3 {[%clk 0:01:13]} 25. Rxa6 {[%clk 0:01:23]}  Nxa6 {[%clk 0:01:13]} 26. Qxa6 {[%clk 0:01:21]}  Qxd6 {[%clk 0:01:14]} 27. Qb5 {[%clk 0:01:16]}  Rb8 {[%clk 0:01:05]} 28. Qxb3 {[%clk 0:00:54]}  Bxd4 {[%clk 0:01:03]} 29. Qd3 {[%clk 0:00:54]}  Bxe3 {[%clk 0:01:00]} 30. fxe3 {[%clk 0:00:54]}  Qe5 {[%clk 0:00:48]} 31. Qa3 {[%clk 0:00:49]}  Qf5 {[%clk 0:00:39]} 32. Qa1 {[%clk 0:00:41]}  Qg5 {[%clk 0:00:34]} 33. Qa7 {[%clk 0:00:36]}  Rf8 {[%clk 0:00:34]} 34. h3 {[%clk 0:00:35]}  Qe5 {[%clk 0:00:30]} 35. Kg1 {[%clk 0:00:31]}  Kg7 {[%clk 0:00:28]} 36. Kh1 {[%clk 0:00:32]}  g5 {[%clk 0:00:27]} 37. Kg1 {[%clk 0:00:28]}  Kg6 {[%clk 0:00:27]} 38. Kh1 {[%clk 0:00:28]}  f5 {[%clk 0:00:27]} 39. Rb1 {[%clk 0:00:26]}  f4 {[%clk 0:00:25]} 40. exf4 {[%clk 0:00:22]}  Rxf4 {[%clk 0:00:24]} 41. Qa5 {[%clk 0:00:12]}  Qf5 {[%clk 0:00:23]} 42. Qb5 {[%clk 0:00:10]}  h5 {[%clk 0:00:20]} 43. Qe8+ {[%clk 0:00:10]}  Qf7 {[%clk 0:00:20]} 44. Qb5 {[%clk 0:00:08]}  g4 {[%clk 0:00:20]} 45. hxg4 {[%clk 0:00:09]}  hxg4 {[%clk 0:00:21]} 46. Qd3+ {[%clk 0:00:09]}  Qf5 {[%clk 0:00:21]} 47. Qb5 {[%clk 0:00:08]}  g3 {[%clk 0:00:21]} 48. Kg1 {[%clk 0:00:07]}  Qf7 {[%clk 0:00:14]} 49. Re1 {[%clk 0:00:05]}  Re4 {[%clk 0:00:13]} 50. Qb1 {[%clk 0:00:04]}  Qf5 {[%clk 0:00:13]} 51. Rf1 {[%clk 0:00:05]}  Qh5 {[%clk 0:00:12]} 0-1


[Site "https://www.chess.com"]

[Event "Late Titled Tuesday Blitz February 8 2022"]
[White "Ozen, Deniz"]
[Black "Lewicki, Miroslaw"]
[WhiteFideId "6349196"]
[BlackFideId "1113380"]
[WhiteElo "2326"]
[BlackElo "2283"]
[Result "1-0"]
[Round "01"]
[TimeControl "180+1"]
[Date "2022.02.09"]
[WhiteClock "0:00:05"]
[BlackClock "0:00:01"]

1. d4 {[%clk 0:03:00]}  a6 {[%clk 0:02:59]} 2. e4 {[%clk 0:03:01]}  b5 {[%clk 0:03:00]} 3. Nf3 {[%clk 0:03:01]}  Bb7 {[%clk 0:02:59]} 4. Bd3 {[%clk 0:03:02]}  g6 {[%clk 0:02:59]} 5. O-O {[%clk 0:03:02]}  Bg7 {[%clk 0:02:59]} 6. c3 {[%clk 0:03:02]}  e6 {[%clk 0:02:59]} 7. Re1 {[%clk 0:03:03]}  Ne7 {[%clk 0:02:59]} 8. Nbd2 {[%clk 0:03:03]}  O-O {[%clk 0:03:00]} 9. Nf1 {[%clk 0:03:04]}  d6 {[%clk 0:02:59]} 10. Ng3 {[%clk 0:03:04]}  c5 {[%clk 0:03:00]} 11. Be3 {[%clk 0:03:04]}  Nd7 {[%clk 0:03:00]} 12. Qd2 {[%clk 0:03:03]}  Rc8 {[%clk 0:02:52]} 13. Rad1 {[%clk 0:03:03]}  Nb6 {[%clk 0:02:51]} 14. Bh6 {[%clk 0:02:59]}  cxd4 {[%clk 0:02:51]} 15. cxd4 {[%clk 0:02:59]}  Nc4 {[%clk 0:02:50]} 16. Bxc4 {[%clk 0:02:59]}  Rxc4 {[%clk 0:02:50]} 17. Bxg7 {[%clk 0:02:58]}  Kxg7 {[%clk 0:02:51]} 18. b3 {[%clk 0:02:59]}  Rc7 {[%clk 0:02:48]} 19. h4 {[%clk 0:02:59]}  h5 {[%clk 0:02:47]} 20. Qg5 {[%clk 0:02:55]}  Nc6 {[%clk 0:02:46]} 21. Nxh5+ {[%clk 0:02:52]}  Kh7 {[%clk 0:02:42]} 22. Nf6+ {[%clk 0:02:50]}  Kg7 {[%clk 0:02:42]} 23. e5 {[%clk 0:02:49]}  Ne7 {[%clk 0:02:30]} 24. Nh5+ {[%clk 0:02:28]}  Kh7 {[%clk 0:02:28]} 25. Nf6+ {[%clk 0:02:12]}  Kg7 {[%clk 0:02:27]} 26. h5 {[%clk 0:02:12]}  Bxf3 {[%clk 0:02:25]} 27. gxf3 {[%clk 0:02:09]}  Nf5 {[%clk 0:01:59]} 28. Rd2 {[%clk 0:02:00]}  Rc3 {[%clk 0:01:56]} 29. Kg2 {[%clk 0:01:40]}  dxe5 {[%clk 0:01:51]} 30. dxe5 {[%clk 0:01:40]}  Nh4+ {[%clk 0:01:52]} 31. Kh1 {[%clk 0:01:08]}  Nxf3 {[%clk 0:00:54]} 32. Rxd8 {[%clk 0:00:32]}  Rxd8 {[%clk 0:00:54]} 33. h6+ {[%clk 0:00:22]}  Kh8 {[%clk 0:00:52]} 34. Qf4 {[%clk 0:00:13]}  Nxe1 {[%clk 0:00:47]} 35. Ne4 {[%clk 0:00:09]}  Rf3 {[%clk 0:00:47]} 36. Qg5 {[%clk 0:00:09]}  Rd1 {[%clk 0:00:35]} 37. Kh2 {[%clk 0:00:07]}  Rdd3 {[%clk 0:00:32]} 38. Qe7 {[%clk 0:00:06]}  Rh3+ {[%clk 0:00:21]} 39. Kg1 {[%clk 0:00:06]}  Nf3+ {[%clk 0:00:22]} 40. Kf1 {[%clk 0:00:05]}  Rd1+ {[%clk 0:00:11]} 41. Kg2 {[%clk 0:00:05]}  Nh4+ {[%clk 0:00:01]} 42. Kxh3 {[%clk 0:00:05]}  Rh1+ {[%clk 0:00:01]} 43. Kg4 {[%clk 0:00:05]} 1-0


[Site "https://www.chess.com"]

[Event "Late Titled Tuesday Blitz February 8 2022"]
[White "Paravyan, David"]
[Black "Cunha, Lucas Aguiar"]
[WhiteFideId "4194985"]
[BlackFideId "2125404"]
[WhiteElo "2569"]
[BlackElo "2361"]
[Result "1-0"]
[Round "01"]
[TimeControl "180+1"]
[Date "2022.02.08"]
[WhiteClock "0:00:31"]
[BlackClock "0:00:37"]

1. e4 {[%clk 0:03:00]}  c5 {[%clk 0:02:58]} 2. Nf3 {[%clk 0:03:00]}  e6 {[%clk 0:02:57]} 3. d4 {[%clk 0:03:01]}  cxd4 {[%clk 0:02:58]} 4. Nxd4 {[%clk 0:03:01]}  Nc6 {[%clk 0:02:58]} 5. Nc3 {[%clk 0:02:59]}  Qc7 {[%clk 0:02:58]} 6. Be2 {[%clk 0:02:51]}  a6 {[%clk 0:02:58]} 7. Nxc6 {[%clk 0:02:50]}  bxc6 {[%clk 0:02:58]} 8. Qd3 {[%clk 0:02:50]}  Nf6 {[%clk 0:02:57]} 9. Qg3 {[%clk 0:02:49]}  e5 {[%clk 0:02:56]} 10. O-O {[%clk 0:02:44]}  d6 {[%clk 0:02:40]} 11. Kh1 {[%clk 0:02:43]}  h5 {[%clk 0:02:30]} 12. Bg5 {[%clk 0:02:39]}  Be7 {[%clk 0:02:25]} 13. h3 {[%clk 0:02:37]}  Rb8 {[%clk 0:02:24]} 14. b3 {[%clk 0:02:35]}  Rb4 {[%clk 0:02:22]} 15. Bc4 {[%clk 0:02:30]}  h4 {[%clk 0:02:07]} 16. Qf3 {[%clk 0:02:24]}  a5 {[%clk 0:01:58]} 17. a3 {[%clk 0:02:16]}  Rb8 {[%clk 0:01:57]} 18. Rad1 {[%clk 0:02:13]}  Be6 {[%clk 0:01:55]} 19. Bxe6 {[%clk 0:02:05]}  fxe6 {[%clk 0:01:56]} 20. Nb1 {[%clk 0:01:35]}  d5 {[%clk 0:01:54]} 21. Nd2 {[%clk 0:01:35]}  Bxa3 {[%clk 0:01:45]} 22. Bxf6 {[%clk 0:01:34]}  O-O {[%clk 0:01:45]} 23. Qg4 {[%clk 0:01:24]}  Rxf6 {[%clk 0:01:45]} 24. Nf3 {[%clk 0:01:20]}  Rbf8 {[%clk 0:01:34]} 25. Qxh4 {[%clk 0:01:11]}  Rf4 {[%clk 0:01:32]} 26. Qh5 {[%clk 0:01:11]}  Qf7 {[%clk 0:01:26]} 27. Qxf7+ {[%clk 0:01:10]}  R8xf7 {[%clk 0:01:25]} 28. Rd2 {[%clk 0:01:02]}  Bd6 {[%clk 0:01:18]} 29. Re2 {[%clk 0:00:52]}  Rxf3 {[%clk 0:01:01]} 30. gxf3 {[%clk 0:00:52]}  Rxf3 {[%clk 0:01:02]} 31. Kg2 {[%clk 0:00:52]}  Rc3 {[%clk 0:01:03]} 32. Rd1 {[%clk 0:00:49]}  Kf7 {[%clk 0:00:59]} 33. Rd3 {[%clk 0:00:47]}  Rc5 {[%clk 0:00:56]} 34. c4 {[%clk 0:00:47]}  d4 {[%clk 0:00:55]} 35. Ra2 {[%clk 0:00:46]}  g5 {[%clk 0:00:52]} 36. Kf3 {[%clk 0:00:45]}  Kg6 {[%clk 0:00:52]} 37. Kg4 {[%clk 0:00:45]}  Be7 {[%clk 0:00:52]} 38. Ra4 {[%clk 0:00:45]}  Bd8 {[%clk 0:00:51]} 39. Rd1 {[%clk 0:00:44]}  Be7 {[%clk 0:00:51]} 40. Kf3 {[%clk 0:00:43]}  Kh5 {[%clk 0:00:51]} 41. Rg1 {[%clk 0:00:43]}  Bd8 {[%clk 0:00:50]} 42. Rg4 {[%clk 0:00:42]}  Bf6 {[%clk 0:00:49]} 43. Ke2 {[%clk 0:00:42]}  Be7 {[%clk 0:00:48]} 44. Kd3 {[%clk 0:00:43]}  Bf6 {[%clk 0:00:48]} 45. Rg3 {[%clk 0:00:43]}  Kh4 {[%clk 0:00:48]} 46. Rf3 {[%clk 0:00:43]}  Bd8 {[%clk 0:00:46]} 47. Ra1 {[%clk 0:00:43]}  Kh5 {[%clk 0:00:45]} 48. Rf8 {[%clk 0:00:41]}  Be7 {[%clk 0:00:45]} 49. Re8 {[%clk 0:00:39]}  Bf6 {[%clk 0:00:43]} 50. Rxe6 {[%clk 0:00:39]}  Kg6 {[%clk 0:00:44]} 51. Rd6 {[%clk 0:00:39]}  Kf7 {[%clk 0:00:44]} 52. Rd7+ {[%clk 0:00:37]}  Ke6 {[%clk 0:00:43]} 53. Ra7 {[%clk 0:00:38]}  Bd8 {[%clk 0:00:42]} 54. f3 {[%clk 0:00:36]}  Kd6 {[%clk 0:00:43]} 55. Rg1 {[%clk 0:00:34]}  Ke6 {[%clk 0:00:39]} 56. h4 {[%clk 0:00:30]}  gxh4 {[%clk 0:00:39]} 57. Rg6+ {[%clk 0:00:30]}  Bf6 {[%clk 0:00:38]} 58. Rh7 {[%clk 0:00:30]}  a4 {[%clk 0:00:37]} 59. b4 {[%clk 0:00:31]} 1-0


[Site "https://www.chess.com"]

[Event "Late Titled Tuesday Blitz February 8 2022"]
[White "Pinheiro, Iung Alicio de O."]
[Black "Sailer, Mike"]
[WhiteFideId "2104350"]
[BlackFideId "2012901"]
[WhiteElo "2584"]
[BlackElo "2109"]
[Result "1-0"]
[Round "01"]
[TimeControl "180+1"]
[Date "2022.02.09"]
[WhiteClock "0:01:10"]
[BlackClock "0:00:45"]

1. e4 {[%clk 0:02:59]}  d5 {[%clk 0:02:59]} 2. exd5 {[%clk 0:02:58]}  Qxd5 {[%clk 0:02:58]} 3. Nc3 {[%clk 0:02:59]}  Qd6 {[%clk 0:02:58]} 4. d4 {[%clk 0:02:55]}  Nf6 {[%clk 0:02:57]} 5. Nf3 {[%clk 0:02:52]}  c6 {[%clk 0:02:57]} 6. Ne5 {[%clk 0:02:50]}  Nbd7 {[%clk 0:02:56]} 7. f4 {[%clk 0:02:50]}  g6 {[%clk 0:02:54]} 8. Bc4 {[%clk 0:02:46]}  e6 {[%clk 0:02:51]} 9. Qe2 {[%clk 0:02:42]}  Bg7 {[%clk 0:02:47]} 10. Be3 {[%clk 0:02:18]}  Nb6 {[%clk 0:02:45]} 11. Bb3 {[%clk 0:02:16]}  Nbd5 {[%clk 0:02:41]} 12. O-O-O {[%clk 0:02:08]}  Nxc3 {[%clk 0:02:35]} 13. bxc3 {[%clk 0:02:08]}  Qa3+ {[%clk 0:02:31]} 14. Kb1 {[%clk 0:02:07]}  a5 {[%clk 0:02:17]} 15. Nc4 {[%clk 0:01:52]}  Qe7 {[%clk 0:02:13]} 16. Nb6 {[%clk 0:01:49]}  Rb8 {[%clk 0:02:10]} 17. f5 {[%clk 0:01:36]}  gxf5 {[%clk 0:02:04]} 18. Bf4 {[%clk 0:01:36]}  a4 {[%clk 0:01:49]} 19. Bxa4 {[%clk 0:01:33]}  Ra8 {[%clk 0:01:21]} 20. Nxa8 {[%clk 0:01:27]}  Qa3 {[%clk 0:01:20]} 21. Nc7+ {[%clk 0:01:24]}  Kd8 {[%clk 0:01:12]} 22. Bb3 {[%clk 0:01:19]}  Bf8 {[%clk 0:00:57]} 23. Bg5 {[%clk 0:01:13]}  Be7 {[%clk 0:00:55]} 24. Qe5 {[%clk 0:01:13]}  Rg8 {[%clk 0:00:46]} 25. Bxf6 {[%clk 0:01:12]}  Bxf6 {[%clk 0:00:45]} 26. Qxf6+ {[%clk 0:01:10]} 1-0


[Site "https://www.chess.com"]